fUST/lending_fUST_20241120
["ID","MTS","AMOUNT","RATE_DAILY","PERIOD"]
[342750593,1732101038799,-500.0,0.00025205,7]
[342750594,1732101038809,-1974.74,0.00025205,7]
[342750595,1732101038818,-500.0,0.00025205,7]
[342750596,1732101038828,-1415.56,0.00025205,7]
[342750597,1732101038837,-500.0,0.00025305,7]
[342750598,1732101038846,-500.0,0.00025479,7]
[342750599,1732101038855,-200.0,0.00025479,2]
[342750600,1732101038864,-500.0,0.00025479,7]
[342750601,1732101038881,-500.0,0.00025479,7]
[342750602,1732101038891,-500.0,0.00025479,7]
[342750603,1732101038901,-1974.74,0.00025479,7]
[342750604,1732101038910,-500.0,0.00025479,7]
[342750605,1732101038920,-1415.56,0.00025479,7]
[342750606,1732101038929,-177.71459911,0.00025545,2]
[342750607,1732101038939,-377.73360628,0.00025753,7]
[342750608,1732101038949,-200.0,0.00025753,2]
[342750609,1732101038961,-500.0,0.00025753,7]
[342750610,1732101038970,-500.0,0.00025753,7]
[342750611,1732101038980,-500.0,0.00025753,7]
[342750612,1732101038989,-1974.74,0.00025753,7]
[342750613,1732101038999,-500.0,0.00025753,7]
[342750614,1732101039009,-1415.56,0.00025753,7]
[342750615,1732101039019,-303.16976112,0.00025869,2]
[342750616,1732101039031,-235.60787518,0.00025922,2]
[342750617,1732101039040,-200.0,0.00026027,2]
[342750618,1732101039050,-500.0,0.00026027,7]
[342750619,1732101039059,-500.0,0.00026027,7]
[342750620,1732101039069,-160.77352796,0.00026027,7]
[342750621,1732101039079,-1974.74,0.00026027,7]
[342750622,1732101039090,-528.14124784,0.00026027,7]
[342750623,1732101039099,-500.0,0.00026027,4]
[342750624,1732101039108,-1415.56,0.00026027,7]
[342750625,1732101039119,-300.0,0.000261,2]
[342750626,1732101039132,-702.9,0.00026105,15]
[342750627,1732101039141,-303.16976112,0.00026128,2]
[342750628,1732101039150,-177.71459911,0.00026134,2]
[342750629,1732101039159,-1108.0,0.00026248,2]
[342750630,1732101039168,-530.0,0.00026248,2]
[342750631,1732101039177,-2383.0,0.00026248,2]
[342750632,1732101039186,-200.0,0.00026301,2]
[342750633,1732101039196,-261.6,0.00026301,7]
[342750634,1732101039206,-500.0,0.00026301,7]
[342750635,1732101039215,-1974.74,0.00026301,7]
[342750636,1732101039225,-1415.56,0.00026301,7]
[342750637,1732101039238,-660.0,0.00026384,2]
[342750638,1732101039257,-454.75464168,0.00026386,4]
[342750639,1732101039276,-200.0,0.00026575,2]
[342750640,1732101039294,-618.40472209,0.00026575,7]
[342750641,1732101039304,-1974.74,0.00026575,7]
[342750642,1732101039314,-1415.56,0.00026575,7]
[342750643,1732101039325,-454.75464168,0.00026645,4]
[342750644,1732101039335,-177.71459911,0.00026724,2]
[342750645,1732101039345,-200.0,0.00026849,2]
[342750646,1732101039354,-1974.74,0.00026849,7]
[342750647,1732101039364,-1415.56,0.00026849,7]
[342750648,1732101039377,-454.75464168,0.00026904,4]
[342750649,1732101039388,-193.913486,0.00026921,2]
[342750650,1732101039398,-500.0,0.00026949,7]
[342750651,1732101039408,-232.0,0.00027,2]
[342750652,1732101039419,-300.0,0.000271,2]
[342750653,1732101039429,-200.0,0.00027123,2]
[342750654,1732101039440,-1974.74,0.00027123,7]
[342750655,1732101039450,-1415.56,0.00027123,7]
[342750656,1732101039460,-454.75464168,0.00027162,4]
[342750657,1732101039470,-12009.44,0.000272,14]
[342750658,1732101039480,-177.71459911,0.00027313,2]
[342750659,1732101039490,-200.0,0.00027397,2]
[342750660,1732101039500,-1974.74,0.00027397,7]
[342750661,1732101039511,-500.0,0.00027397,5]
[342750662,1732101039521,-1415.56,0.00027397,7]
[342750663,1732101039531,-165.50305946,0.00027397,2]
[342750664,1732101039541,-454.75464168,0.00027421,4]
[342750665,1732101039554,-282.92606856,0.00027671,2]
[342750666,1732101039567,-1974.74,0.00027671,7]
[342750667,1732101039579,-1415.56,0.00027671,7]
[342750668,1732101039590,-232.0,0.00027671,2]
[342750669,1732101039600,-620.14758859,0.0002768,6]
[342750670,1732101039612,-177.71459911,0.00027903,2]
[342750671,1732101039625,-299.88,0.00027945,7]
[342750672,1732101039635,-1974.74,0.00027945,7]
[342750673,1732101039645,-299.88,0.00027945,7]
[342750674,1732101039654,-299.88,0.00027945,7]
[342750675,1732101039664,-1415.56,0.00027945,7]
[342750676,1732101039674,-6000.0,0.00028,2]
[342750677,1732101039685,-330.0,0.00028,2]
[342750678,1732101039695,-300.0,0.000281,2]
[342750679,1732101039704,-6156.3,0.000281,30]
[342750680,1732101039714,-299.86,0.00028219,7]
[342750681,1732101039723,-150.65596042,0.00028219,7]
[342750682,1732101039733,-299.87,0.00028219,7]
[342750683,1732101039743,-1974.96417386,0.00028219,7]
[342750684,1732101039753,-1415.5900114,0.00028219,7]
[342750685,1732101039763,-12289.54501813,0.0002823,2]
[342750686,1732101039772,-1000.0,0.00028452,2]
[342750688,1732101039781,-1000.0,0.00028475,2]
[342750689,1732101039904,-177.71459911,0.00028492,2]
[342750690,1732101039913,-1000.0,0.00028521,2]
[342750691,1732101039922,-1000.0,0.00028522,2]
[342750692,1732101039931,-151.0,0.00028544,7]
[342750694,1732101039940,-151.0,0.00028544,7]
[342750695,1732101039950,-279.137255,0.00028544,7]
[342750696,1732101039959,-151.0,0.00028544,7]
[342750697,1732101039967,-261.933598,0.00028544,7]
[342750698,1732101039977,-1000.0,0.00028562,2]
[342750699,1732101039986,-500.0,0.00028573,5]
[342750700,1732101039995,-7351.70649821,0.00028578,21]
[342750701,1732101040004,-1000.0,0.00028586,2]
[342750702,1732101040013,-476.15509545,0.00028586,2]
[342750704,1732101040022,-201.444581,0.00028589,7]
[342750705,1732101040031,-151.0,0.00028589,7]
[342750706,1732101040039,-151.0,0.00028589,7]
[342750707,1732101040048,-151.0,0.00028589,7]
[342750708,1732101040056,-177.383977,0.00028589,7]
[342750709,1732101040065,-151.0,0.00028589,7]
[342750710,1732101040075,-151.0,0.00028589,7]
[342750711,1732101040083,-151.0,0.00028589,7]
[342750712,1732101040093,-151.0,0.00028589,7]
[342750713,1732101040102,-1000.0,0.00028589,2]
[342750714,1732101040111,-151.0,0.00028589,7]
[342750715,1732101040121,-151.0,0.00028589,7]
[342750716,1732101040130,-151.0,0.00028589,7]
[342750717,1732101040139,-316.460983,0.00028589,7]
[342750718,1732101040148,-316.460983,0.00028589,7]
[342750719,1732101040157,-316.460983,0.00028589,7]
[342750720,1732101040166,-316.460983,0.00028589,7]
[342750721,1732101040174,-316.460983,0.00028589,7]
[342750722,1732101040183,-316.460983,0.00028589,7]
[342750723,1732101040192,-316.460983,0.00028589,7]
[342750724,1732101040201,-316.460983,0.00028589,7]
[342750725,1732101040210,-316.460983,0.00028589,7]
[342750726,1732101040219,-316.460983,0.00028589,7]
[342750727,1732101040228,-316.460983,0.00028589,7]
[342750728,1732101040237,-316.460983,0.00028589,7]
[342750729,1732101040245,-316.460983,0.00028589,7]
[342750730,1732101040254,-316.460983,0.00028589,7]
[342750731,1732101040263,-316.460983,0.00028589,7]
[342750732,1732101040272,-151.0,0.00028589,7]
[342750733,1732101040281,-151.0,0.00028589,7]
[342750734,1732101040290,-316.460983,0.00028589,7]
[342750735,1732101040299,-151.0,0.00028589,7]
[342750737,1732101040308,-316.460983,0.00028589,7]
[342750739,1732101040317,-316.460983,0.00028589,7]
[342750740,1732101040326,-316.460983,0.00028589,7]
[342750741,1732101040335,-316.460987,0.00028589,7]
[342750742,1732101040344,-151.0,0.00028592,7]
[342750743,1732101040353,-151.0,0.00028592,7]
[342750744,1732101040362,-151.0,0.00028592,7]
[342750745,1732101040373,-151.0,0.00028592,7]
[342750746,1732101040382,-152.661123,0.00028592,7]
[342750747,1732101040391,-151.0,0.00028592,7]
[342750748,1732101040401,-151.0,0.00028592,7]
[342750749,1732101040410,-151.0,0.00028592,7]
[342750750,1732101040419,-151.0,0.00028592,7]
[342750751,1732101040429,-151.0,0.00028592,7]
[342750752,1732101040438,-151.0,0.00028592,7]
[342750753,1732101040447,-151.0,0.00028592,7]
[342750754,1732101040457,-151.0,0.00028592,7]
[342750755,1732101040466,-158.040518,0.00028592,7]
[342750756,1732101040475,-151.0,0.00028592,7]
[342750757,1732101040484,-151.0,0.00028592,7]
[342750758,1732101040493,-151.0,0.00028592,7]
[342750759,1732101040503,-166.670344,0.00028592,7]
[342750760,1732101040512,-151.0,0.00028592,7]
[342750761,1732101040522,-151.0,0.00028592,7]
[342750762,1732101040531,-151.0,0.00028592,7]
[342750763,1732101040541,-151.0,0.00028592,7]
[342750764,1732101040550,-151.0,0.00028592,7]
[342750765,1732101040559,-151.0,0.00028592,7]
[342750766,1732101040569,-151.0,0.00028592,7]
[342750767,1732101040580,-198.01365,0.00028592,7]
[342750768,1732101040589,-198.01365,0.00028592,7]
[342750769,1732101040598,-198.01365,0.00028592,7]
[342750770,1732101040607,-198.01365,0.00028592,7]
[342750771,1732101040617,-198.01365,0.00028592,7]
[342750772,1732101040633,-198.01365,0.00028592,7]
[342750773,1732101040644,-198.01365,0.00028592,7]
[342750774,1732101040654,-198.01365,0.00028592,7]
[342750775,1732101040663,-198.01365,0.00028592,7]
[342750776,1732101040672,-198.01365,0.00028592,7]
[342750777,1732101040681,-198.01365,0.00028592,7]
[342750778,1732101040690,-198.01365,0.00028592,7]
[342750779,1732101040699,-198.01365,0.00028592,7]
[342750780,1732101040709,-198.01365,0.00028592,7]
[342750781,1732101040718,-198.01365,0.00028592,7]
[342750782,1732101040730,-198.01365,0.00028592,7]
[342750783,1732101040742,-198.01365,0.00028592,7]
[342750784,1732101040751,-198.01365,0.00028592,7]
[342750785,1732101040760,-198.01365,0.00028592,7]
[342750786,1732101040770,-198.013645,0.00028592,7]
[342750787,1732101040780,-151.0,0.00028592,7]
[342750788,1732101040789,-151.0,0.00028592,7]
[342750789,1732101040799,-151.0,0.00028592,7]
[342750790,1732101040809,-2028071.18081656,0.00028592,10]
[342750791,1732101040878,-405477.95352219,0.00028592,10]
[342750792,1732101040890,-192772.05879502,0.00028592,10]
[342750793,1732101040901,-4595.85,0.00028592,10]
[342750794,1732101040969,-1144.24812985,0.00020817,2]
[342750795,1732101040978,-179.45211412,0.00021917,2]
[342750796,1732101040987,-137.41061753,0.00022191,2]
[342750797,1732101040998,-633.15272794,0.00022191,2]
[342750798,1732101041006,-10.06595,0.00028592,2]
[342750799,1732101041018,-169.38616412,0.00028592,2]
[342750800,1732101041027,-179.45211412,0.00028592,2]
[342750801,1732101041036,-151.0,0.00028592,7]
[342750802,1732101041045,-151.0,0.00028592,7]
[342750803,1732101041054,-151.0,0.00028592,7]
[342750804,1732101041063,-270.472861,0.00028592,7]
[342750805,1732101041072,-11532.7402318,0.00028592,10]
[342750824,1732101043706,-500.0,0.00022191,7]
[342750825,1732101043715,-54.44695434,0.00022465,7]
[342750826,1732101043728,-140.31304566,0.00022465,7]
[342750827,1732101043737,-1241.46911955,0.00023724,2]
[342750828,1732101043746,-644.46076,0.00026435,15]
[342750829,1732101043755,-2399.74531752,0.00028592,10]
[342750830,1732101043888,-977.369992,0.00028592,10]
[342750855,1732101546769,172.851558,0.00013973,2]
[342750879,1732102123589,19931.19899539,0.0001,2]
[342750890,1732102229160,164.20898,0.00013973,2]
[342750937,1732102232498,-164.20898,0.00020447,2]
[342750939,1732102232509,-162.891537,0.00020744,2]
[342750941,1732102232518,-279.24752031,0.0002084,2]
[342750942,1732102232540,-20.75247969,0.0002084,2]
[342750943,1732102232549,-20290.65,0.00020841,2]
[342750944,1732102232559,-463.808077,0.00020841,2]
[342750945,1732102232568,-2225.6465291,0.00020841,2]
[342750946,1732102232577,-463.808077,0.00021526,2]
[342750947,1732102232587,-500.0,0.00021816,2]
[342750948,1732102232596,-301.78455168,0.00021816,2]
[342750949,1732102232607,-152.52064532,0.00021816,2]
[342750950,1732102232616,-636.97153204,0.00021816,2]
[342750951,1732102232626,-153.20468526,0.00021816,2]
[342750952,1732102232635,-138830.69559868,0.00021817,2]
[342750953,1732102232644,-188.58580875,0.00021817,2]
[342750954,1732102232654,-583.17589299,0.00021917,7]
[342750955,1732102232663,-500.0,0.00021917,7]
[342750956,1732102232672,-500.0,0.00021917,7]
[342750957,1732102232682,-500.0,0.00021917,7]
[342750958,1732102232692,-500.0,0.00021917,7]
[342750959,1732102232701,-211.12348636,0.00021917,7]
[342750960,1732102232711,-500.0,0.00021917,7]
[342750961,1732102232725,-500.0,0.00021917,7]
[342750962,1732102232737,-500.0,0.00021917,7]
[342750963,1732102232749,-500.0,0.00021917,7]
[342750964,1732102232761,-500.0,0.00021917,7]
[342750965,1732102232772,-500.0,0.00021917,7]
[342750966,1732102232784,-500.0,0.00021917,7]
[342750967,1732102232796,-541.39,0.00021917,7]
[342750968,1732102232808,-505.2611503,0.00021917,7]
[342750969,1732102232819,-500.0,0.00021917,7]
[342750970,1732102232831,-500.0,0.00021917,7]
[342750971,1732102232841,-500.0,0.00021917,7]
[342750972,1732102232851,-500.0,0.00021917,7]
[342750973,1732102232861,-500.0,0.00021917,7]
[342750974,1732102232870,-500.0,0.00021917,7]
[342750975,1732102232881,-500.0,0.00021917,7]
[342750976,1732102232892,-500.0,0.00021917,7]
[342750977,1732102232903,-500.0,0.00021917,7]
[342750978,1732102232920,-500.0,0.00021917,7]
[342750979,1732102232930,-600.32,0.00021917,7]
[342750980,1732102232940,-500.0,0.00021917,7]
[342750981,1732102232951,-508.8983254,0.00021917,7]
[342750982,1732102232962,-500.0,0.00021917,7]
[342750983,1732102232972,-500.0,0.00021917,7]
[342750984,1732102232983,-500.0,0.00021917,7]
[342750985,1732102232995,-505.40205588,0.00021917,7]
[342750986,1732102233006,-500.0,0.00021917,7]
[342750987,1732102233018,-500.0,0.00021917,7]
[342750988,1732102233028,-500.0,0.00021917,7]
[342750989,1732102233039,-500.0,0.00021917,7]
[342750990,1732102233049,-500.0,0.00021917,7]
[342750991,1732102233060,-520.52,0.00021917,7]
[342750992,1732102233070,-500.0,0.00021917,7]
[342750993,1732102233080,-500.0,0.00021917,7]
[342750994,1732102233090,-152.37607848,0.00021917,7]
[342750995,1732102233101,-500.0,0.00021917,7]
[342750996,1732102233111,-500.0,0.00021917,7]
[342750997,1732102233122,-500.0,0.00021917,7]
[342750998,1732102233132,-500.0,0.00021917,7]
[342750999,1732102233144,-500.0,0.00021917,7]
[342751000,1732102233154,-500.0,0.00021917,7]
[342751001,1732102233164,-500.0,0.00021917,7]
[342751002,1732102233175,-500.0,0.00021917,7]
[342751003,1732102233185,-626.5,0.00021917,7]
[342751004,1732102233195,-500.0,0.00021917,7]
[342751005,1732102233205,-500.0,0.00021917,7]
[342751006,1732102233215,-500.0,0.00021917,7]
[342751007,1732102233225,-500.0,0.00021917,7]
[342751008,1732102233235,-500.0,0.00021917,7]
[342751009,1732102233246,-500.0,0.00021917,7]
[342751010,1732102233255,-500.0,0.00021917,7]
[342751011,1732102233267,-500.0,0.00021917,7]
[342751012,1732102233277,-500.0,0.00021917,7]
[342751013,1732102233287,-500.0,0.00021917,7]
[342751014,1732102233298,-500.0,0.00021917,7]
[342751015,1732102233308,-500.0,0.00021917,7]
[342751016,1732102233319,-500.0,0.00021917,7]
[342751017,1732102233329,-500.0,0.00021917,7]
[342751018,1732102233339,-500.0,0.00021917,7]
[342751019,1732102233349,-500.0,0.00021917,7]
[342751020,1732102233359,-500.0,0.00021917,7]
[342751021,1732102233369,-500.0,0.00021917,7]
[342751022,1732102233379,-500.0,0.00021917,7]
[342751023,1732102233389,-500.0,0.00021917,7]
[342751024,1732102233398,-507.89644802,0.00021917,7]
[342751025,1732102233408,-500.0,0.00021917,7]
[342751026,1732102233418,-500.0,0.00021917,7]
[342751027,1732102233427,-500.0,0.00021917,7]
[342751028,1732102233439,-500.0,0.00021917,7]
[342751029,1732102233449,-500.0,0.00021917,7]
[342751030,1732102233460,-500.0,0.00021917,7]
[342751031,1732102233470,-517.24896597,0.00021917,7]
[342751032,1732102233480,-500.0,0.00021917,7]
[342751033,1732102233490,-500.0,0.00021917,7]
[342751034,1732102233500,-500.0,0.00021917,7]
[342751035,1732102233513,-500.0,0.00021917,7]
[342751036,1732102233523,-500.0,0.00021917,7]
[342751037,1732102233534,-437.55793498,0.00021917,7]
[342751038,1732102233544,-500.0,0.00021917,7]
[342751039,1732102233556,-502.73012298,0.00021917,7]
[342751040,1732102233567,-500.0,0.00021917,7]
[342751041,1732102233578,-500.0,0.00021917,7]
[342751042,1732102233589,-500.0,0.00021917,7]
[342751043,1732102233600,-500.0,0.00021917,7]
[342751044,1732102233611,-500.0,0.00021917,7]
[342751045,1732102233620,-500.0,0.00021917,7]
[342751046,1732102233632,-508.36746947,0.00021917,7]
[342751047,1732102233643,-500.0,0.00021917,7]
[342751048,1732102233654,-1000.0,0.00021917,2]
[342751049,1732102233664,-500.0,0.00021917,7]
[342751050,1732102233676,-500.0,0.00021917,7]
[342751051,1732102233686,-500.0,0.00021917,7]
[342751052,1732102233698,-500.0,0.00021917,7]
[342751053,1732102233709,-500.0,0.00021917,7]
[342751054,1732102233720,-575.03,0.00021917,7]
[342751055,1732102233731,-500.0,0.00021917,7]
[342751056,1732102233743,-500.0,0.00021917,7]
[342751057,1732102233755,-503.39603982,0.00021917,7]
[342751058,1732102233768,-500.0,0.00021917,7]
[342751059,1732102233778,-581.29,0.00021917,7]
[342751060,1732102233789,-500.0,0.00021917,7]
[342751061,1732102233799,-462.93108102,0.00021917,7]
[342751062,1732102233808,-500.0,0.00021917,7]
[342751063,1732102233819,-500.0,0.00021917,7]
[342751064,1732102233830,-505.35975356,0.00021917,7]
[342751065,1732102233839,-500.0,0.00021917,7]
[342751066,1732102233850,-627.64,0.00021917,7]
[342751067,1732102233860,-500.0,0.00021917,7]
[342751068,1732102233871,-606.48,0.00021917,7]
[342751069,1732102233882,-643.5,0.00021917,7]
[342751070,1732102233892,-500.0,0.00021917,7]
[342751071,1732102233903,-500.0,0.00021917,7]
[342751072,1732102233916,-647.04,0.00021917,7]
[342751073,1732102233927,-500.0,0.00021917,7]
[342751074,1732102233939,-500.0,0.00021917,7]
[342751075,1732102233950,-500.0,0.00021917,7]
[342751076,1732102233962,-500.0,0.00021917,7]
[342751077,1732102233972,-500.0,0.00021917,7]
[342751078,1732102233983,-575.78312888,0.00021917,7]
[342751079,1732102233994,-500.0,0.00021917,7]
[342751080,1732102234003,-500.0,0.00021917,7]
[342751081,1732102234014,-500.0,0.00021917,7]
[342751082,1732102234023,-513.07241637,0.00021917,7]
[342751083,1732102234033,-500.0,0.00021917,7]
[342751084,1732102234042,-503.25240077,0.00021917,7]
[342751085,1732102234052,-500.0,0.00021917,7]
[342751086,1732102234062,-500.0,0.00021917,7]
[342751087,1732102234073,-500.0,0.00021917,7]
[342751088,1732102234083,-535.54259427,0.00021917,7]
[342751089,1732102234093,-500.0,0.00021917,7]
[342751090,1732102234103,-517.38484332,0.00021917,7]
[342751091,1732102234114,-500.0,0.00021917,7]
[342751092,1732102234125,-500.0,0.00021917,7]
[342751093,1732102234135,-500.0,0.00021917,7]
[342751094,1732102234145,-500.0,0.00021917,7]
[342751095,1732102234155,-500.0,0.00021917,7]
[342751096,1732102234165,-500.0,0.00021917,7]
[342751097,1732102234175,-500.0,0.00021917,7]
[342751098,1732102234185,-500.0,0.00021917,7]
[342751099,1732102234194,-500.0,0.00021917,7]
[342751100,1732102234204,-500.0,0.00021917,7]
[342751101,1732102234214,-500.0,0.00021917,7]
[342751102,1732102234224,-500.0,0.00021917,7]
[342751103,1732102234234,-501.78773727,0.00021917,7]
[342751104,1732102234245,-565.07,0.00021917,7]
[342751105,1732102234255,-500.0,0.00021917,7]
[342751106,1732102234268,-500.0,0.00021917,7]
[342751107,1732102234278,-500.0,0.00021917,7]
[342751108,1732102234288,-505.62925142,0.00021917,7]
[342751109,1732102234298,-500.0,0.00021917,7]
[342751110,1732102234310,-515.95648945,0.00021917,7]
[342751111,1732102234320,-500.0,0.00021917,7]
[342751112,1732102234330,-510.82808382,0.00021917,7]
[342751113,1732102234340,-500.0,0.00021917,7]
[342751114,1732102234350,-500.0,0.00021917,7]
[342751115,1732102234360,-510.10030751,0.00021917,7]
[342751116,1732102234369,-580.19770332,0.00021917,7]
[342751117,1732102234379,-500.0,0.00021917,7]
[342751118,1732102234389,-500.0,0.00021917,7]
[342751119,1732102234399,-500.0,0.00021917,7]
[342751120,1732102234409,-500.0,0.00021917,7]
[342751121,1732102234419,-500.0,0.00021917,7]
[342751122,1732102234429,-500.0,0.00021917,7]
[342751123,1732102234439,-500.0,0.00021917,7]
[342751124,1732102234450,-500.0,0.00021917,7]
[342751125,1732102234460,-500.0,0.00021917,7]
[342751126,1732102234470,-500.0,0.00021917,7]
[342751127,1732102234480,-500.0,0.00021917,7]
[342751128,1732102234491,-502.69331649,0.00021917,7]
[342751129,1732102234501,-500.0,0.00021917,7]
[342751130,1732102234511,-500.0,0.00021917,7]
[342751131,1732102234521,-500.0,0.00021917,7]
[342751132,1732102234532,-500.0,0.00021917,7]
[342751133,1732102234542,-500.0,0.00021917,7]
[342751134,1732102234552,-500.0,0.00021917,7]
[342751135,1732102234562,-500.0,0.00021917,7]
[342751136,1732102234572,-503.1351237,0.00021917,7]
[342751137,1732102234582,-500.0,0.00021917,7]
[342751138,1732102234757,-530.17701659,0.00021917,7]
[342751139,1732102234768,-500.0,0.00021917,7]
[342751140,1732102234777,-500.0,0.00021917,7]
[342751141,1732102234787,-347.0191074,0.00021917,7]
[342751142,1732102234796,-500.0,0.00021917,7]
[342751143,1732102234805,-500.0,0.00021917,7]
[342751144,1732102234815,-500.0,0.00021917,7]
[342751145,1732102234823,-500.0,0.00021917,7]
[342751146,1732102234833,-500.0,0.00021917,7]
[342751147,1732102234842,-500.0,0.00021917,7]
[342751148,1732102234851,-500.0,0.00021917,7]
[342751149,1732102234860,-500.0,0.00021917,7]
[342751150,1732102234869,-500.0,0.00021917,7]
[342751151,1732102234879,-500.0,0.00021917,7]
[342751152,1732102234888,-500.0,0.00021917,7]
[342751153,1732102234898,-500.0,0.00021917,7]
[342751154,1732102234907,-500.0,0.00021917,7]
[342751155,1732102234920,-500.0,0.00021917,7]
[342751156,1732102234929,-500.0,0.00021917,7]
[342751157,1732102234938,-500.0,0.00021917,7]
[342751158,1732102234947,-500.0,0.00021917,7]
[342751159,1732102234958,-500.0,0.00021917,7]
[342751160,1732102234967,-500.0,0.00021917,7]
[342751161,1732102234976,-500.0,0.00021917,7]
[342751162,1732102234986,-500.0,0.00021917,7]
[342751163,1732102234995,-500.0,0.00021917,7]
[342751164,1732102235005,-500.0,0.00021917,7]
[342751165,1732102235015,-500.0,0.00021917,7]
[342751166,1732102235025,-633.92,0.00021917,7]
[342751167,1732102235034,-500.0,0.00021917,7]
[342751168,1732102235043,-500.0,0.00021917,7]
[342751169,1732102235052,-500.0,0.00021917,7]
[342751170,1732102235061,-500.0,0.00021917,7]
[342751171,1732102235070,-500.0,0.00021917,7]
[342751172,1732102235079,-500.0,0.00021917,7]
[342751173,1732102235088,-500.0,0.00021917,7]
[342751174,1732102235097,-500.0,0.00021917,7]
[342751175,1732102235107,-500.0,0.00021917,7]
[342751176,1732102235116,-500.0,0.00021917,7]
[342751177,1732102235125,-500.0,0.00021917,7]
[342751178,1732102235134,-500.0,0.00021917,7]
[342751179,1732102235143,-500.0,0.00021917,7]
[342751180,1732102235152,-500.0,0.00021917,7]
[342751181,1732102235162,-500.0,0.00021917,7]
[342751182,1732102235171,-500.0,0.00021917,7]
[342751183,1732102235180,-271.26451616,0.00021917,2]
[342751184,1732102235190,-500.0,0.00021917,7]
[342751185,1732102235199,-500.0,0.00021917,7]
[342751186,1732102235208,-500.0,0.00021917,7]
[342751187,1732102235217,-500.0,0.00021917,7]
[342751188,1732102235226,-500.0,0.00021917,7]
[342751189,1732102235235,-500.0,0.00021917,7]
[342751190,1732102235244,-500.0,0.00021917,7]
[342751191,1732102235254,-500.0,0.00022018,2]
[342751192,1732102235264,-201.42,0.00022191,7]
[342751193,1732102235273,-500.0,0.00022191,7]
[342751194,1732102235282,-500.0,0.00022191,7]
[342751195,1732102235291,-500.0,0.00022191,7]
[342751196,1732102235300,-500.0,0.00022191,7]
[342751197,1732102235309,-500.0,0.00022191,7]
[342751198,1732102235318,-500.0,0.00022191,7]
[342751199,1732102235327,-500.0,0.00022191,7]
[342751200,1732102235336,-500.0,0.00022191,7]
[342751201,1732102235345,-500.0,0.00022191,7]
[342751202,1732102235355,-500.0,0.00022191,7]
[342751203,1732102235364,-500.0,0.00022191,7]
[342751204,1732102235373,-209.23072152,0.00022191,7]
[342751205,1732102235382,-507.51092878,0.00022191,7]
[342751206,1732102235392,-500.0,0.00022191,7]
[342751207,1732102235401,-500.0,0.00022191,7]
[342751208,1732102235410,-500.0,0.00022191,7]
[342751209,1732102235420,-500.0,0.00022191,7]
[342751210,1732102235429,-500.0,0.00022191,7]
[342751211,1732102235438,-505.75481237,0.00022191,7]
[342751212,1732102235447,-500.0,0.00022191,7]
[342751213,1732102235456,-500.0,0.00022191,7]
[342751214,1732102235465,-564.27000256,0.00022191,7]
[342751215,1732102235474,-500.0,0.00022191,7]
[342751216,1732102235483,-472.86259286,0.00022191,7]
[342751217,1732102235492,-611.9,0.00022191,7]
[342751218,1732102235501,-500.0,0.00022191,7]
[342751219,1732102235510,-500.0,0.00022191,7]
[342751220,1732102235528,-500.0,0.00022191,7]